[Event "*** SCC Grand Prix: Titled Tuesday Blitz"]
[Site "Chess.com"]
[Date "2020.08.25"]
[Round "6"]
[White "MF1966Idrisov"]
[Black "Morshynska"]
[Result "1-0"]
[WhiteElo "2358"]
[BlackElo "2183"]
[TimeControl "180+1"]
[EndTime "11:08:03 PDT"]
[Termination "MF1966Idrisov won on time"]

1. Nf3 {[%clk 0:03:00.9]} 1... d5 {[%clk 0:02:59.3]} 2. b3 {[%clk 0:03:01]} 2...
Nf6 {[%clk 0:02:57.7]} 3. Bb2 {[%clk 0:03:01.2]} 3... Bf5 {[%clk 0:02:57.4]} 4.
e3 {[%clk 0:03:01.4]} 4... e6 {[%clk 0:02:55.2]} 5. d4 {[%clk 0:03:01.8]} 5...
Bd6 {[%clk 0:02:47.1]} 6. Bd3 {[%clk 0:03:00.8]} 6... O-O {[%clk 0:02:45]} 7.
O-O {[%clk 0:03:00.4]} 7... Nbd7 {[%clk 0:02:39.8]} 8. Nbd2 {[%clk 0:02:58.8]}
8... Qe7 {[%clk 0:02:38.8]} 9. Ne5 {[%clk 0:02:58.5]} 9... Ba3 {[%clk
0:02:32.1]} 10. Qc1 {[%clk 0:02:54.7]} 10... Bxb2 {[%clk 0:02:31.9]} 11. Qxb2
{[%clk 0:02:54.5]} 11... Nxe5 {[%clk 0:02:24.9]} 12. dxe5 {[%clk 0:02:54]} 12...
Nd7 {[%clk 0:02:25.2]} 13. f4 {[%clk 0:02:44.2]} 13... f6 {[%clk 0:02:11.8]} 14.
Nf3 {[%clk 0:02:41.9]} 14... Rae8 {[%clk 0:01:55.3]} 15. Rae1 {[%clk 0:02:35]}
15... Nc5 {[%clk 0:01:48.9]} 16. Qd4 {[%clk 0:02:23.9]} 16... b6 {[%clk
0:01:27.8]} 17. Bxf5 {[%clk 0:02:22.3]} 17... exf5 {[%clk 0:01:25.2]} 18. Qxd5+
{[%clk 0:02:22.3]} 18... Kh8 {[%clk 0:01:25.1]} 19. exf6 {[%clk 0:02:11.2]}
19... Rxf6 {[%clk 0:01:26]} 20. Ne5 {[%clk 0:02:08.5]} 20... Rd8 {[%clk
0:01:10.9]} 21. Qc4 {[%clk 0:02:00.5]} 21... Qe8 {[%clk 0:00:53.2]} 22. Rd1
{[%clk 0:01:55.2]} 22... Rdd6 {[%clk 0:00:43.3]} 23. Rd4 {[%clk 0:01:47]} 23...
h6 {[%clk 0:00:23.4]} 24. Rfd1 {[%clk 0:01:45]} 24... Kh7 {[%clk 0:00:22.5]} 25.
b4 {[%clk 0:01:33]} 25... Ne4 {[%clk 0:00:20.2]} 26. Qxc7 {[%clk 0:01:26.7]}
26... Rxd4 {[%clk 0:00:20]} 27. Rxd4 {[%clk 0:01:24.7]} 27... Qh5 {[%clk
0:00:15.6]} 28. Rd7 {[%clk 0:01:10.9]} 28... Rg6 {[%clk 0:00:06.7]} 29. Nxg6
{[%clk 0:00:52.2]} 29... Qxg6 {[%clk 0:00:07.6]} 30. Rd1 {[%clk 0:00:42]} 30...
h5 {[%clk 0:00:07.2]} 31. Qd7 {[%clk 0:00:38.3]} 31... h4 {[%clk 0:00:06.9]} 32.
Rd5 {[%clk 0:00:29.7]} 1-0

[Event "*** SCC Grand Prix: Titled Tuesday Blitz"]
[Site "Chess.com"]
[Date "2020.08.25"]
[Round "6"]
[White "Gareth-Bale11"]
[Black "sergeikim"]
[Result "1-0"]
[WhiteElo "2743"]
[BlackElo "2502"]
[TimeControl "180+1"]
[EndTime "11:08:05 PDT"]
[Termination "Gareth-Bale11 won by checkmate"]

1. d4 {[%clk 0:02:59.6]} 1... Nf6 {[%clk 0:02:59.2]} 2. Nf3 {[%clk 0:02:56.2]}
2... g6 {[%clk 0:02:59.3]} 3. c4 {[%clk 0:02:50.8]} 3... Bg7 {[%clk 0:02:59.3]}
4. Nc3 {[%clk 0:02:51.4]} 4... d6 {[%clk 0:02:59.4]} 5. e4 {[%clk 0:02:50.9]}
5... O-O {[%clk 0:02:59.8]} 6. h3 {[%clk 0:02:45.5]} 6... e5 {[%clk 0:02:58.9]}
7. d5 {[%clk 0:02:45.8]} 7... a5 {[%clk 0:02:58.1]} 8. Be3 {[%clk 0:02:42.5]}
8... Na6 {[%clk 0:02:57.6]} 9. g4 {[%clk 0:02:42.2]} 9... Nc5 {[%clk 0:02:56.8]}
10. Nd2 {[%clk 0:02:42.3]} 10... Bd7 {[%clk 0:02:56.4]} 11. b3 {[%clk
0:02:33.9]} 11... Rc8 {[%clk 0:02:55.8]} 12. Be2 {[%clk 0:02:33.5]} 12... c6
{[%clk 0:02:55.6]} 13. Rc1 {[%clk 0:02:27.5]} 13... Ne8 {[%clk 0:02:52.9]} 14.
h4 {[%clk 0:02:21.7]} 14... Nc7 {[%clk 0:02:48.9]} 15. h5 {[%clk 0:02:16]} 15...
N7a6 {[%clk 0:02:43.2]} 16. a3 {[%clk 0:02:10.4]} 16... f5 {[%clk 0:02:26.6]}
17. hxg6 {[%clk 0:01:58.3]} 17... hxg6 {[%clk 0:02:26.2]} 18. gxf5 {[%clk
0:01:58]} 18... gxf5 {[%clk 0:02:25.8]} 19. exf5 {[%clk 0:01:54.3]} 19... Bxf5
{[%clk 0:02:24.8]} 20. Nf3 {[%clk 0:01:51.3]} 20... a4 {[%clk 0:02:17.3]} 21.
bxa4 {[%clk 0:01:40.4]} 21... Qa5 {[%clk 0:02:10.1]} 22. Kf1 {[%clk 0:01:39.5]}
22... Ne4 {[%clk 0:01:52.4]} 23. Nxe4 {[%clk 0:01:28.5]} 23... Bxe4 {[%clk
0:01:51.7]} 24. Rg1 {[%clk 0:01:24.6]} 24... cxd5 {[%clk 0:01:31.5]} 25. Ng5
{[%clk 0:01:17.1]} 25... Qc7 {[%clk 0:00:38.7]} 26. cxd5 {[%clk 0:00:45.9]}
26... Qxc1 {[%clk 0:00:32.7]} 27. Bxc1 {[%clk 0:00:43.6]} 27... Bf5 {[%clk
0:00:31.4]} 28. Ne6 {[%clk 0:00:37.8]} 28... Rf7 {[%clk 0:00:30.8]} 29. Bg4
{[%clk 0:00:34.8]} 29... Bd3+ {[%clk 0:00:22.7]} 30. Qxd3 {[%clk 0:00:33.1]}
30... Rxc1+ {[%clk 0:00:21.4]} 31. Kg2 {[%clk 0:00:33.6]} 31... Rxg1+ {[%clk
0:00:13.1]} 32. Kxg1 {[%clk 0:00:34.5]} 32... Bh6 {[%clk 0:00:13]} 33. Qg6+
{[%clk 0:00:33.2]} 33... Bg7 {[%clk 0:00:11.6]} 34. Ng5 {[%clk 0:00:31.9]} 34...
Re7 {[%clk 0:00:10.3]} 35. Be6+ {[%clk 0:00:31.3]} 35... Kf8 {[%clk 0:00:09.3]}
36. Nh7# {[%clk 0:00:31.3]} 1-0

[Event "*** SCC Grand Prix: Titled Tuesday Blitz"]
[Site "Chess.com"]
[Date "2020.08.25"]
[Round "6"]
[White "Chernobay_Artem"]
[Black "XiaoKangZhong"]
[Result "1-0"]
[WhiteElo "2572"]
[BlackElo "2421"]
[TimeControl "180+1"]
[EndTime "11:08:06 PDT"]
[Termination "Chernobay_Artem won by resignation"]

1. d4 {[%clk 0:03:00.9]} 1... Nf6 {[%clk 0:02:59.1]} 2. c4 {[%clk 0:03:01.2]}
2... g6 {[%clk 0:02:59]} 3. Nc3 {[%clk 0:02:42.6]} 3... d5 {[%clk 0:02:57.8]} 4.
cxd5 {[%clk 0:02:41.5]} 4... Nxd5 {[%clk 0:02:58.7]} 5. e4 {[%clk 0:02:41.6]}
5... Nxc3 {[%clk 0:02:58]} 6. bxc3 {[%clk 0:02:42.5]} 6... Bg7 {[%clk
0:02:58.5]} 7. Bc4 {[%clk 0:02:42.7]} 7... O-O {[%clk 0:02:58.5]} 8. Ne2 {[%clk
0:02:42.7]} 8... c5 {[%clk 0:02:57.7]} 9. O-O {[%clk 0:02:43.1]} 9... Nc6 {[%clk
0:02:54.3]} 10. Be3 {[%clk 0:02:43.3]} 10... Qc7 {[%clk 0:02:52.4]} 11. Rc1
{[%clk 0:02:35]} 11... b6 {[%clk 0:02:47.6]} 12. h4 {[%clk 0:02:34]} 12... h5
{[%clk 0:02:41.5]} 13. Nf4 {[%clk 0:02:28.8]} 13... e6 {[%clk 0:02:23.3]} 14. e5
{[%clk 0:02:01.6]} 14... Rd8 {[%clk 0:02:19]} 15. Qf3 {[%clk 0:01:48.8]} 15...
Bb7 {[%clk 0:01:40]} 16. Qg3 {[%clk 0:01:46.9]} 16... Qe7 {[%clk 0:00:55.6]} 17.
Nxg6 {[%clk 0:01:20.8]} 17... fxg6 {[%clk 0:00:54.1]} 18. Qxg6 {[%clk 0:01:21]}
18... Re8 {[%clk 0:00:41.7]} 19. f4 {[%clk 0:01:12.1]} 19... Qf7 {[%clk
0:00:40]} 20. Qxf7+ {[%clk 0:01:12]} 20... Kxf7 {[%clk 0:00:35.9]} 21. f5 {[%clk
0:01:12.9]} 21... Bf8 {[%clk 0:00:17]} 22. fxe6+ {[%clk 0:01:06.3]} 22... Kg7
{[%clk 0:00:11.3]} 23. Rf7+ {[%clk 0:01:06.4]} 23... Kh8 {[%clk 0:00:10.9]} 24.
Rxb7 {[%clk 0:01:05.5]} 24... Na5 {[%clk 0:00:11.6]} 25. Bd5 {[%clk 0:00:59.4]}
25... Nxb7 {[%clk 0:00:11.1]} 26. Bxb7 {[%clk 0:01:00.3]} 26... Rab8 {[%clk
0:00:12]} 27. Bd5 {[%clk 0:00:58.9]} 27... Rbd8 {[%clk 0:00:10.6]} 28. Bb3
{[%clk 0:00:59.1]} 28... Rc8 {[%clk 0:00:09.3]} 29. Rf1 {[%clk 0:00:57.1]} 29...
cxd4 {[%clk 0:00:09]} 30. cxd4 {[%clk 0:00:56.3]} 30... Bg7 {[%clk 0:00:09.6]}
31. Rf7 {[%clk 0:00:43.8]} 31... Rc3 {[%clk 0:00:07.4]} 32. Bg5 {[%clk
0:00:42.7]} 32... Rd3 {[%clk 0:00:07.2]} 33. Rxg7 {[%clk 0:00:29.2]} 33... Kxg7
{[%clk 0:00:06.8]} 34. d5 {[%clk 0:00:29.5]} 34... Kg6 {[%clk 0:00:02.7]} 35.
Bc2 {[%clk 0:00:28.8]} 1-0

[Event "*** SCC Grand Prix: Titled Tuesday Blitz"]
[Site "Chess.com"]
[Date "2020.08.25"]
[Round "6"]
[White "RobertoJBM"]
[Black "mbojan"]
[Result "1-0"]
[WhiteElo "2650"]
[BlackElo "2776"]
[TimeControl "180+1"]
[EndTime "11:08:09 PDT"]
[Termination "RobertoJBM won by resignation"]

1. d4 {[%clk 0:03:00.9]} 1... Nf6 {[%clk 0:03:00]} 2. c4 {[%clk 0:02:59.6]} 2...
c5 {[%clk 0:02:59.8]} 3. d5 {[%clk 0:02:59.2]} 3... b5 {[%clk 0:02:59.8]} 4.
cxb5 {[%clk 0:03:00.1]} 4... a6 {[%clk 0:03:00]} 5. b6 {[%clk 0:03:00.5]} 5...
e6 {[%clk 0:02:57.3]} 6. Nc3 {[%clk 0:02:59]} 6... exd5 {[%clk 0:02:49.6]} 7.
Nxd5 {[%clk 0:02:58]} 7... Nxd5 {[%clk 0:02:47.6]} 8. Qxd5 {[%clk 0:02:56.8]}
8... Nc6 {[%clk 0:02:47.9]} 9. e4 {[%clk 0:02:56.8]} 9... Be7 {[%clk 0:02:46.5]}
10. Bc4 {[%clk 0:02:55]} 10... O-O {[%clk 0:02:46.3]} 11. Nf3 {[%clk 0:02:54]}
11... Rb8 {[%clk 0:02:46.6]} 12. O-O {[%clk 0:02:53.7]} 12... Rxb6 {[%clk
0:02:45.5]} 13. b3 {[%clk 0:02:39.5]} 13... Na5 {[%clk 0:02:27.2]} 14. Be2
{[%clk 0:02:30]} 14... Bb7 {[%clk 0:02:18.8]} 15. Qd3 {[%clk 0:02:29.4]} 15...
Re6 {[%clk 0:02:16.1]} 16. Nd2 {[%clk 0:02:24.2]} 16... Bf6 {[%clk 0:02:04.5]}
17. Rb1 {[%clk 0:02:22.3]} 17... d5 {[%clk 0:02:01.7]} 18. exd5 {[%clk
0:02:13.4]} 18... Qxd5 {[%clk 0:01:59.7]} 19. Qxd5 {[%clk 0:02:12.1]} 19... Bxd5
{[%clk 0:02:00.6]} 20. Bf3 {[%clk 0:02:04.7]} 20... Bxf3 {[%clk 0:01:51.9]} 21.
Nxf3 {[%clk 0:02:05.6]} 21... Nc6 {[%clk 0:01:50]} 22. Ba3 {[%clk 0:02:00.8]}
22... Nb4 {[%clk 0:01:48.1]} 23. Bxb4 {[%clk 0:01:58.6]} 23... cxb4 {[%clk
0:01:49]} 24. Rfe1 {[%clk 0:01:58.5]} 24... Rxe1+ {[%clk 0:01:45.4]} 25. Rxe1
{[%clk 0:01:57.1]} 25... Rc8 {[%clk 0:01:45.9]} 26. Kf1 {[%clk 0:01:57.2]} 26...
g6 {[%clk 0:01:41.4]} 27. g3 {[%clk 0:01:56.3]} 27... Kg7 {[%clk 0:01:40.5]} 28.
h4 {[%clk 0:01:55.7]} 28... h5 {[%clk 0:01:40.5]} 29. Re2 {[%clk 0:01:55]} 29...
Rc1+ {[%clk 0:01:39.6]} 30. Re1 {[%clk 0:01:50.7]} 30... Rc6 {[%clk 0:01:36.6]}
31. Re4 {[%clk 0:01:48.8]} 31... a5 {[%clk 0:01:34]} 32. Re2 {[%clk 0:01:47.5]}
32... Kf8 {[%clk 0:01:26.4]} 33. Kg2 {[%clk 0:01:46.7]} 33... Rc1 {[%clk
0:01:22.2]} 34. Ng1 {[%clk 0:01:41.7]} 34... Bc3 {[%clk 0:00:44.1]} 35. Nh3
{[%clk 0:01:38.9]} 35... Rd1 {[%clk 0:00:33.4]} 36. Nf4 {[%clk 0:01:35.7]} 36...
Bf6 {[%clk 0:00:31.5]} 37. Kf3 {[%clk 0:01:34.3]} 37... Be7 {[%clk 0:00:28.3]}
38. Rc2 {[%clk 0:01:30.7]} 38... Bd6 {[%clk 0:00:25]} 39. Ke2 {[%clk 0:01:29.6]}
39... Ra1 {[%clk 0:00:25]} 40. Nd5 {[%clk 0:01:27.7]} 40... Be5 {[%clk
0:00:19.8]} 41. Nb6 {[%clk 0:01:24.1]} 41... Ke7 {[%clk 0:00:16.9]} 42. Nc4
{[%clk 0:01:21.8]} 42... Bc7 {[%clk 0:00:17.5]} 43. Rd2 {[%clk 0:01:20]} 43...
Ke6 {[%clk 0:00:16.3]} 44. Kf3 {[%clk 0:01:13.9]} 44... Rc1 {[%clk 0:00:15.1]}
45. Ke2 {[%clk 0:01:10.5]} 45... a4 {[%clk 0:00:14.2]} 46. Nb2 {[%clk
0:01:01.2]} 46... axb3 {[%clk 0:00:06.4]} 47. axb3 {[%clk 0:01:01.3]} 47... Rc3
{[%clk 0:00:06.4]} 48. Nd3 {[%clk 0:01:01.5]} 48... Rxb3 {[%clk 0:00:05.8]} 49.
Nc5+ {[%clk 0:01:01.1]} 1-0

[Event "*** SCC Grand Prix: Titled Tuesday Blitz"]
[Site "Chess.com"]
[Date "2020.08.25"]
[Round "6"]
[White "jacky72"]
[Black "DishonorOnYourCow"]
[Result "0-1"]
[WhiteElo "2527"]
[BlackElo "2359"]
[TimeControl "180+1"]
[EndTime "11:08:09 PDT"]
[Termination "DishonorOnYourCow won by checkmate"]

1. e4 {[%clk 0:03:00.9]} 1... e5 {[%clk 0:02:53.3]} 2. Nf3 {[%clk 0:02:59.1]}
2... Nc6 {[%clk 0:02:53.8]} 3. Bc4 {[%clk 0:02:59.1]} 3... Bc5 {[%clk
0:02:53.2]} 4. b4 {[%clk 0:02:59.1]} 4... Bxb4 {[%clk 0:02:48.8]} 5. c3 {[%clk
0:02:59.1]} 5... Ba5 {[%clk 0:02:48.7]} 6. d4 {[%clk 0:02:59]} 6... d6 {[%clk
0:02:47.7]} 7. O-O {[%clk 0:02:55.3]} 7... Bb6 {[%clk 0:02:27.3]} 8. dxe5 {[%clk
0:02:49.1]} 8... dxe5 {[%clk 0:01:51.8]} 9. Qa4 {[%clk 0:01:57.9]} 9... Bd7
{[%clk 0:01:28.3]} 10. Rd1 {[%clk 0:01:42.2]} 10... Nd4 {[%clk 0:00:47.6]} 11.
Qb4 {[%clk 0:01:29.3]} 11... Nxf3+ {[%clk 0:00:36.4]} 12. gxf3 {[%clk
0:01:30.2]} 12... Qf6 {[%clk 0:00:23.9]} 13. Be2 {[%clk 0:01:10.9]} 13... O-O-O
{[%clk 0:00:23.3]} 14. Na3 {[%clk 0:01:01.7]} 14... Qg6+ {[%clk 0:00:20.4]} 15.
Kh1 {[%clk 0:01:02.2]} 15... Bxf2 {[%clk 0:00:19.1]} 16. Rb1 {[%clk 0:00:56.9]}
16... Bb6 {[%clk 0:00:17.2]} 17. Be3 {[%clk 0:00:54]} 17... Nf6 {[%clk
0:00:17.2]} 18. Bxb6 {[%clk 0:00:53.1]} 18... cxb6 {[%clk 0:00:17.7]} 19. Rg1
{[%clk 0:00:42.8]} 19... Qh6 {[%clk 0:00:17.3]} 20. Nc4 {[%clk 0:00:41.3]} 20...
Qh5 {[%clk 0:00:11.3]} 21. a4 {[%clk 0:00:36.6]} 21... Bc6 {[%clk 0:00:10.4]}
22. Nd6+ {[%clk 0:00:31.6]} 22... Kb8 {[%clk 0:00:09.1]} 23. a5 {[%clk
0:00:30.8]} 23... b5 {[%clk 0:00:07.2]} 24. a6 {[%clk 0:00:27.7]} 24... b6
{[%clk 0:00:06]} 25. Nxb5 {[%clk 0:00:28.1]} 25... Nxe4 {[%clk 0:00:05.9]} 26.
Rxg7 {[%clk 0:00:22.8]} 26... Nf2+ {[%clk 0:00:05.2]} 27. Kg2 {[%clk 0:00:23.4]}
27... Rd2 {[%clk 0:00:04.9]} 28. Qe7 {[%clk 0:00:16.2]} 28... Qh3+ {[%clk
0:00:03.5]} 29. Kxf2 {[%clk 0:00:15.8]} 29... Qxf3+ {[%clk 0:00:03.8]} 30. Kg1
{[%clk 0:00:15]} 30... Qe3+ {[%clk 0:00:03.9]} 31. Kf1 {[%clk 0:00:13]} 31...
Qxe2+ {[%clk 0:00:04.3]} 32. Kg1 {[%clk 0:00:13.8]} 32... Qf2# {[%clk
0:00:04.7]} 0-1

[Event "*** SCC Grand Prix: Titled Tuesday Blitz"]
[Site "Chess.com"]
[Date "2020.08.25"]
[Round "6"]
[White "The_Chess_Coach"]
[Black "MashaFromRussia"]
[Result "1-0"]
[WhiteElo "2218"]
[BlackElo "2398"]
[TimeControl "180+1"]
[EndTime "11:08:09 PDT"]
[Termination "The_Chess_Coach won by resignation"]

1. d4 {[%clk 0:03:00.9]} 1... Nf6 {[%clk 0:02:59.1]} 2. c4 {[%clk 0:02:58.7]}
2... g6 {[%clk 0:02:59.3]} 3. Nc3 {[%clk 0:02:58.9]} 3... Bg7 {[%clk 0:02:59.8]}
4. e4 {[%clk 0:02:59.4]} 4... d6 {[%clk 0:03:00.3]} 5. Nf3 {[%clk 0:02:59.4]}
5... O-O {[%clk 0:03:00.8]} 6. Be2 {[%clk 0:02:59.6]} 6... e5 {[%clk 0:03:01.3]}
7. Be3 {[%clk 0:02:59.6]} 7... exd4 {[%clk 0:02:59.7]} 8. Nxd4 {[%clk
0:02:58.8]} 8... Re8 {[%clk 0:02:59.7]} 9. f3 {[%clk 0:02:57.4]} 9... c6 {[%clk
0:03:00]} 10. Qd2 {[%clk 0:02:49.8]} 10... d5 {[%clk 0:02:57.9]} 11. cxd5 {[%clk
0:02:40.1]} 11... cxd5 {[%clk 0:02:58.8]} 12. O-O {[%clk 0:01:46.7]} 12... dxe4
{[%clk 0:02:55.5]} 13. fxe4 {[%clk 0:01:47.6]} 13... Nxe4 {[%clk 0:02:47.2]} 14.
Nxe4 {[%clk 0:01:43]} 14... Rxe4 {[%clk 0:02:48.1]} 15. Rad1 {[%clk 0:01:21.6]}
15... Qe8 {[%clk 0:02:22.5]} 16. Bc4 {[%clk 0:01:05.5]} 16... Bxd4 {[%clk
0:00:58.1]} 17. Bxd4 {[%clk 0:00:55.9]} 17... Be6 {[%clk 0:00:58.3]} 18. Bxe6
{[%clk 0:00:40.6]} 18... Rxe6 {[%clk 0:00:57.4]} 19. Bf6 {[%clk 0:00:26.9]}
19... Nc6 {[%clk 0:00:54.3]} 20. Qh6 {[%clk 0:00:26]} 20... Qf8 {[%clk
0:00:30.8]} 21. Qh4 {[%clk 0:00:20.3]} 21... Rae8 {[%clk 0:00:26.5]} 22. Rd7
{[%clk 0:00:19.4]} 22... Re4 {[%clk 0:00:26.4]} 23. Qg5 {[%clk 0:00:17]} 23...
Rb4 {[%clk 0:00:24.3]} 24. Rc7 {[%clk 0:00:13]} 24... Qd6 {[%clk 0:00:22.6]} 25.
Rxf7 {[%clk 0:00:06.8]} 25... Rbe4 {[%clk 0:00:09.3]} 26. Rg7+ {[%clk 0:00:06]}
26... Kh8 {[%clk 0:00:09.1]} 27. Rxg6+ {[%clk 0:00:05.6]} 1-0

[Event "*** SCC Grand Prix: Titled Tuesday Blitz"]
[Site "Chess.com"]
[Date "2020.08.25"]
[Round "6"]
[White "EndGameDestroyer"]
[Black "niki_2003"]
[Result "1-0"]
[WhiteElo "2249"]
[BlackElo "1661"]
[TimeControl "180+1"]
[EndTime "11:08:11 PDT"]
[Termination "EndGameDestroyer won on time"]

1. e4 {[%clk 0:03:00.9]} 1... c5 {[%clk 0:02:57]} 2. f4 {[%clk 0:03:00.5]} 2...
a6 {[%clk 0:02:56.2]} 3. Nf3 {[%clk 0:03:00.1]} 3... b5 {[%clk 0:02:56.6]} 4. c4
{[%clk 0:02:59]} 4... Bb7 {[%clk 0:02:49.6]} 5. e5 {[%clk 0:02:50.1]} 5... bxc4
{[%clk 0:02:43.1]} 6. Bxc4 {[%clk 0:02:50.2]} 6... e6 {[%clk 0:02:43.2]} 7. O-O
{[%clk 0:02:47.9]} 7... d5 {[%clk 0:02:43.6]} 8. exd6 {[%clk 0:02:44.4]} 8...
Bxd6 {[%clk 0:02:43.3]} 9. d4 {[%clk 0:02:13.1]} 9... Nf6 {[%clk 0:02:24.6]} 10.
f5 {[%clk 0:02:08.9]} 10... cxd4 {[%clk 0:02:08.2]} 11. fxe6 {[%clk 0:02:01.7]}
11... O-O {[%clk 0:01:25.3]} 12. exf7+ {[%clk 0:01:59.3]} 12... Kh8 {[%clk
0:01:20.3]} 13. Bg5 {[%clk 0:01:44.7]} 13... Bc5 {[%clk 0:01:17.5]} 14. Nbd2
{[%clk 0:01:27.3]} 14... h6 {[%clk 0:01:11.7]} 15. Ne5 {[%clk 0:00:56.9]} 15...
d3+ {[%clk 0:00:39.3]} 16. Kh1 {[%clk 0:00:53.6]} 16... Nbd7 {[%clk 0:00:17.9]}
17. Ng6+ {[%clk 0:00:44.5]} 17... Kh7 {[%clk 0:00:17.5]} 18. Bxd3 {[%clk
0:00:42.5]} 18... hxg5 {[%clk 0:00:06.2]} 19. Nxf8+ {[%clk 0:00:36.7]} 19... Kh8
{[%clk 0:00:05.9]} 20. Ng6+ {[%clk 0:00:29.5]} 20... Kh7 {[%clk 0:00:05.4]} 21.
Rc1 {[%clk 0:00:11.6]} 21... Qb6 {[%clk 0:00:02.4]} 22. Rxf6 {[%clk 0:00:06.1]}
22... Nxf6 {[%clk 0:00:01.8]} 23. Rxc5 {[%clk 0:00:04.6]} 1-0

[Event "*** SCC Grand Prix: Titled Tuesday Blitz"]
[Site "Chess.com"]
[Date "2020.08.25"]
[Round "6"]
[White "WonderChampion"]
[Black "AungTZ"]
[Result "0-1"]
[WhiteElo "1971"]
[BlackElo "2136"]
[TimeControl "180+1"]
[EndTime "11:08:11 PDT"]
[Termination "AungTZ won by checkmate"]

1. d4 {[%clk 0:03:00.9]} 1... Nf6 {[%clk 0:02:49.6]} 2. Bg5 {[%clk 0:02:58.2]}
2... Ne4 {[%clk 0:02:47]} 3. Bf4 {[%clk 0:02:55.1]} 3... d5 {[%clk 0:02:47.9]}
4. f3 {[%clk 0:02:46.6]} 4... Nf6 {[%clk 0:02:46.7]} 5. Nd2 {[%clk 0:02:41.3]}
5... e6 {[%clk 0:02:46.7]} 6. c3 {[%clk 0:02:35.5]} 6... Be7 {[%clk 0:02:46.6]}
7. e4 {[%clk 0:02:34.3]} 7... O-O {[%clk 0:02:45.4]} 8. Bd3 {[%clk 0:02:25.4]}
8... c5 {[%clk 0:02:45.2]} 9. Ne2 {[%clk 0:02:17.6]} 9... Nc6 {[%clk 0:02:44.3]}
10. Bc2 {[%clk 0:02:08.4]} 10... cxd4 {[%clk 0:02:42]} 11. cxd4 {[%clk
0:02:06.4]} 11... Qb6 {[%clk 0:02:40.2]} 12. e5 {[%clk 0:01:59.5]} 12... Nd7
{[%clk 0:02:35.1]} 13. Be3 {[%clk 0:01:50.6]} 13... Ncxe5 {[%clk 0:02:31.6]} 14.
Nb3 {[%clk 0:01:29.9]} 14... Nc4 {[%clk 0:02:29.6]} 15. Qd3 {[%clk 0:01:25.6]}
15... g6 {[%clk 0:02:27]} 16. Bc1 {[%clk 0:01:23.9]} 16... Bb4+ {[%clk
0:02:23.4]} 17. Nd2 {[%clk 0:01:21.5]} 17... Bxd2+ {[%clk 0:02:14.3]} 18. Bxd2
{[%clk 0:01:19.8]} 18... Nxb2 {[%clk 0:02:13.9]} 19. Qc3 {[%clk 0:01:15]} 19...
Nc4 {[%clk 0:02:12]} 20. Bh6 {[%clk 0:01:11.1]} 20... Re8 {[%clk 0:02:11.3]} 21.
O-O {[%clk 0:01:09.2]} 21... Nf6 {[%clk 0:02:06.1]} 22. Bb3 {[%clk 0:01:06.1]}
22... Bd7 {[%clk 0:02:04.4]} 23. Rac1 {[%clk 0:00:59.4]} 23... Rab8 {[%clk
0:02:03.6]} 24. Bxc4 {[%clk 0:00:56.4]} 24... dxc4 {[%clk 0:02:01.4]} 25. Qxc4
{[%clk 0:00:56.4]} 25... Bb5 {[%clk 0:02:00.6]} 26. Qc2 {[%clk 0:00:56]} 26...
Qa6 {[%clk 0:01:55.7]} 27. Rfe1 {[%clk 0:00:54.6]} 27... Bxe2 {[%clk 0:01:52.3]}
28. Rxe2 {[%clk 0:00:53.6]} 28... Nd5 {[%clk 0:01:46.7]} 29. Qd2 {[%clk
0:00:51.5]} 29... Rbc8 {[%clk 0:01:41.4]} 30. Rce1 {[%clk 0:00:48.8]} 30... Qc4
{[%clk 0:01:30.2]} 31. Re4 {[%clk 0:00:42.8]} 31... Qc3 {[%clk 0:01:26.1]} 32.
Qg5 {[%clk 0:00:38.8]} 32... f6 {[%clk 0:01:14.8]} 33. Qh4 {[%clk 0:00:32.2]}
33... Rc6 {[%clk 0:01:11.5]} 34. Qh3 {[%clk 0:00:23.3]} 34... f5 {[%clk
0:00:57.3]} 35. Re5 {[%clk 0:00:22.5]} 35... Qxd4+ {[%clk 0:00:56.2]} 36. Kh1
{[%clk 0:00:22.7]} 36... Nf4 {[%clk 0:00:47.9]} 37. Bxf4 {[%clk 0:00:12.9]}
37... Qxf4 {[%clk 0:00:46.5]} 38. R5e2 {[%clk 0:00:12.9]} 38... Rc1 {[%clk
0:00:43.4]} 39. Re3 {[%clk 0:00:12.5]} 39... Qxe3 {[%clk 0:00:42.7]} 40. Rxc1
{[%clk 0:00:01.1]} 40... Qxc1# {[%clk 0:00:41.4]} 0-1

[Event "*** SCC Grand Prix: Titled Tuesday Blitz"]
[Site "Chess.com"]
[Date "2020.08.25"]
[Round "6"]
[White "Spalir"]
[Black "Mikasinski"]
[Result "1-0"]
[WhiteElo "2584"]
[BlackElo "2348"]
[TimeControl "180+1"]
[EndTime "11:08:12 PDT"]
[Termination "Spalir won on time"]

1. d4 {[%clk 0:03:00.9]} 1... Nf6 {[%clk 0:02:59.9]} 2. Nf3 {[%clk 0:03:00.5]}
2... g6 {[%clk 0:03:00.2]} 3. c4 {[%clk 0:02:59.8]} 3... Bg7 {[%clk 0:03:00.9]}
4. Nc3 {[%clk 0:02:59.9]} 4... d6 {[%clk 0:03:01.6]} 5. g3 {[%clk 0:02:59.1]}
5... O-O {[%clk 0:03:02.3]} 6. Bg2 {[%clk 0:02:59]} 6... Nc6 {[%clk 0:03:02.9]}
7. O-O {[%clk 0:02:59.3]} 7... a6 {[%clk 0:03:03.1]} 8. a4 {[%clk 0:02:58]} 8...
e5 {[%clk 0:02:55.2]} 9. dxe5 {[%clk 0:02:58.9]} 9... dxe5 {[%clk 0:02:55.2]}
10. Bg5 {[%clk 0:02:58]} 10... Qxd1 {[%clk 0:02:51.2]} 11. Rfxd1 {[%clk
0:02:58.3]} 11... Be6 {[%clk 0:02:51.8]} 12. Nd2 {[%clk 0:02:35.9]} 12... Na5
{[%clk 0:02:44.2]} 13. c5 {[%clk 0:02:32.8]} 13... c6 {[%clk 0:02:19.9]} 14. b4
{[%clk 0:02:08.9]} 14... Nc4 {[%clk 0:02:17.3]} 15. a5 {[%clk 0:02:07]} 15... h6
{[%clk 0:01:58.8]} 16. Bxf6 {[%clk 0:02:05.1]} 16... Bxf6 {[%clk 0:01:58.9]} 17.
Nxc4 {[%clk 0:02:01.8]} 17... Bxc4 {[%clk 0:01:58.8]} 18. Ne4 {[%clk 0:02:02.1]}
18... Bg7 {[%clk 0:01:51.4]} 19. Rd7 {[%clk 0:01:46.5]} 19... f5 {[%clk
0:01:44.6]} 20. Nd6 {[%clk 0:01:42.2]} 20... Bxe2 {[%clk 0:01:44.4]} 21. Rxb7
{[%clk 0:01:36.1]} 21... e4 {[%clk 0:01:44.3]} 22. Re1 {[%clk 0:01:26.7]} 22...
Bd3 {[%clk 0:01:42.8]} 23. Rb6 {[%clk 0:01:20.6]} 23... Rab8 {[%clk 0:01:17.3]}
24. Bf1 {[%clk 0:01:19.9]} 24... Bc3 {[%clk 0:01:16]} 25. Rc1 {[%clk 0:01:19.6]}
25... Bxb4 {[%clk 0:01:14]} 26. Rxc6 {[%clk 0:01:00.2]} 26... Ba3 {[%clk
0:00:52.4]} 27. Rd1 {[%clk 0:00:57.3]} 27... Rb3 {[%clk 0:00:29.1]} 28. Nc4
{[%clk 0:00:56.4]} 28... Kg7 {[%clk 0:00:15.3]} 29. Ne5 {[%clk 0:00:53.9]} 29...
Rf6 {[%clk 0:00:14.6]} 30. Rc7+ {[%clk 0:00:53.1]} 30... Kg8 {[%clk 0:00:13.7]}
31. Bxd3 {[%clk 0:00:50.8]} 31... exd3 {[%clk 0:00:12.5]} 32. Rxd3 {[%clk
0:00:50.5]} 32... Rxd3 {[%clk 0:00:11.9]} 33. Nxd3 {[%clk 0:00:51.4]} 33... Kf8
{[%clk 0:00:06.2]} 34. Rb7 {[%clk 0:00:49.1]} 34... Rc6 {[%clk 0:00:05.4]} 35.
Rb6 {[%clk 0:00:45.1]} 35... Rc8 {[%clk 0:00:04.3]} 36. Kg2 {[%clk 0:00:39.1]}
36... Rd8 {[%clk 0:00:04.7]} 37. Rb3 {[%clk 0:00:38.1]} 1-0